Cogmind - Beta 15 @@@ ROGUE MODE // 2025.08.06 @ 16:47:27 Player: Zaje Result: Destroyed by G-47 Trooper with Particle Gun Performance ------------- Evolutions (2) 1000 Regions Visited (3) 600 Robots Destroyed (44) 220 Value Destroyed (1211) 1211 Prototype IDs (2) 40 Alien Tech Used (0) 0 Bonus (-209) -209 TOTAL SCORE: 2862 Bonus ------- Friendly Fire -209 Cogmind --------- Core Integrity 0/550 Matter 213/300 Energy 141/150 System Corruption 0% Temperature Cool (13) Movement Treading (156) Location -8/Materials Parts ------- > --- POWER (2) -------- Light Ion Engine Light Ion Engine > --- PROPULSION (4) --- Improved Treads Improved Treads Improved Treads Advanced Treads > --- UTILITY (3) ------ Huge Storage Unit Advanced Weight Redist. System Advanced Targeting Computer > --- WEAPON (2) ------- Light Assault Rifle Light Assault Rifle > --- INVENTORY (25) --- Light Ion Engine Light Ion Engine Light Treads VSS Leg VSS Leg Improved VTOL Module Huge Storage Unit High-capacity Matter Pod (200) Advanced Weight Redist. System Recalibrator Recalibrator Recalibrator Recalibrator Heavy Particle Gun Light Assault Rifle Light Assault Rifle Mining Laser Peak State ------------ > --- POWER ------------ (None) > --- PROPULSION ------- Gravmag System Gravmag System Gravmag System Gravmag System > --- UTILITY ---------- Improved Heat Sink Huge Storage Unit Seismic Detector > --- WEAPON ----------- Heavy Particle Gun Dirty Datajack > --- INVENTORY -------- Light Treads Improved Treads Improved Treads Improved Treads Advanced Treads VSS Leg Improved VTOL Module Huge Storage Unit High-capacity Matter Pod Mining Laser [Rating: 33] Favorites ----------- Power Light Ion Engine Engine Light Ion Engine Power Core Light Nuclear Core Propulsion Light Treads Treads Light Treads Leg Carbon-fiber Leg Hover Unit Gravmag System Flight Unit Flight Unit Utility Seismic Detector Device Seismic Detector Storage Small Storage Unit Processor Advanced Targeting Computer Weapon Assault Rifle Energy Gun Beamcaster Ballistic Gun Assault Rifle Launcher Rocket Launcher Special Weapon Mining Laser Special Melee Weapon Dirty Datajack Build | -11 -10 -10 -8 ------- Run | Yrd Mat Sub Mat Slots Evolved 4 | . . . 4 Power 1 | . . . 1 Propulsion 2 | . . . 2 Utility 1 | . . . 1 Weapon . | . . . . Parts Attached 54 | 8 1 11 34 Power 13 | 1 . 5 7 Engine 12 | 1 . 5 6 Core 1 | . . . 1 Reactor . | . . . . Propulsion 17 | 2 . 2 13 Treads 6 | 2 . . 4 Leg 4 | . . 2 2 Wheel . | . . . . Hover 4 | . . . 4 Flight 3 | . . . 3 Utility 11 | 3 . . 8 Device 8 | 2 . . 6 Storage 2 | 1 . . 1 Processor 1 | . . . 1 Hackware . | . . . . Protection . | . . . . Artifact . | . . . . Weapon 13 | 2 1 4 6 Energy Gun 4 | 1 . 1 2 Energy Cannon . | . . . . Ballistic Gun 4 | 1 1 . 2 Ballistic Cannon . | . . . . Launcher 3 | . . 2 1 Special Weapon 1 | . . 1 . Impact Weapon . | . . . . Slashing Weapon . | . . . . Piercing Weapon . | . . . . Special Melee Weapon 1 | . . . 1 Unidentified Prototypes 2 | . . . 2 Parts Lost 18 | . . 2 16 Power 2 | . . . 2 Propulsion 7 | . . . 7 Utility 4 | . . . 4 Weapon 5 | . . 2 3 Highest Loss Streak 7 | . . 1 7 To Critical Strikes . | . . . . Average Backups 8 | 4 7 7 8 Power . | . 1 . . Propulsion 3 | 1 2 2 4 Utility 2 | . 2 1 2 Weapon 1 | 1 2 2 1 Tool/Special . | . . . . Unused Backups 12 | . . 3 9 Power 1 | . . 1 . Propulsion 3 | . . 2 1 Utility 5 | . . . 5 Weapon 3 | . . . 3 Tool/Special . | . . . . Average Slot Usage (%) 91 | . 100 99 82 Engine 12 | . 14 14 10 Treads 24 | . 28 23 24 Leg 3 | . . 4 3 Hover 1 | . . . 3 Device 13 | . 14 14 12 Storage 11 | . 14 14 9 Energy Gun 3 | . 6 2 5 Ballistic Gun 12 | . 22 15 9 Launcher 4 | . . 9 . Peak Build Rating 33 | 9 8 21 33 Average Rating 15 | 5 7 11 21 On Entrance 9 | . 7 8 21 Naked Turns . | . . . . Heaviest Build 104 | 15 15 22 104 Greatest Support 100 | 40 40 40 100 Greatest Overweight (x) 34 | 3 . . 34 Average Overweight (x) . | . . . 1 Largest Inventory Capacity 25 | 8 8 8 25 Average Capacity 16 | 7 8 8 24 Most Carried 17 | 7 8 8 17 Average Carried 8 | 4 7 7 8 Final Capacity 25 | 8 8 8 25 Final Carried 17 | 6 8 8 17 Class Distribution -------------------- 62% | Mutant 37% | Scavenger-Mutant Dominant Class ---------------- Mutant | -10/Materials Mutant | -10/Subcaves Scavenger-Mutant | -8/Materials Resources | -11 -10 -10 -8 ----------- Run | Yrd Mat Sub Mat Matter Collected 1482 | 307 71 445 659 Remotely . | . . . . Salvage Created 1492 | 177 107 436 772 Parts 84 | 18 3 27 36 Haulers Intercepted . | . . . . Recyclers Shooed 2 | 1 . . 1 Parts Field Recycled . | . . . . Retrieved Matter . | . . . . Parts Self-Destructed 20 | . . 20 . Prevented . | . . . . Kills | -11 -10 -10 -8 ------- Run | Yrd Mat Sub Mat Combat Hostiles Destroyed 32 | . 1 12 19 Melee 1 | . . . 1 Guns 20 | . 1 2 17 AOE 10 | . . 10 . Classes Destroyed 12 | 3 2 3 4 Worker 3 | 2 . . 1 Builder 2 | . . . 2 Tunneler 3 | 3 . . . Recycler 2 | 1 1 . . Operator 1 | . 1 . . Swarmer 7 | . . . 7 Grunt 13 | . 1 3 9 Duelist 1 | . . . 1 Sentry 2 | . . . 2 Subdweller 9 | . . 9 . Scientist 1 | . . 1 . Guerrilla 1 | . . 1 . Best Kill Streak 5 | 1 3 4 5 Combat Bots Only 5 | . 1 4 5 Max Kills in Single Turn 2 | 1 1 2 2 Gunslinging 1 | . . . 1 Exploded 2 | . . 2 . Melee 1 | . . . 1 Uniques/NPCs Destroyed . | . . . . Combat | -11 -10 -10 -8 -------- Run | Yrd Mat Sub Mat Hostile Shots Fired 261 | . 5 33 223 Missed 71 | . 2 10 59 Hits 190 | . 3 23 164 Melee 3 | . . . 3 Projectile 187 | . 3 23 161 Critical Strikes 5 | . . 1 4 Damage Taken 2808 | . 44 538 2226 Core 591 | . . 41 550 Absorbed by Shields . | . . . . Regen/Repaired (Parts) 153 | . . . 153 Core Remaining (%) 91 | 100 . 83 . Volleys Fired 143 | 9 10 35 89 Largest 2 | 2 2 2 2 Hottest 131 | 70 70 120 131 Shots Fired 226 | 14 20 56 136 Gun 196 | 14 20 27 135 Cannon . | . . . . Launcher 18 | . . 17 1 Special 12 | . . 12 . Kinetic 107 | 9 17 26 55 Thermal 101 | 5 3 13 80 Explosive 17 | . . 17 . Electromagnetic 1 | . . . 1 Robot Hit Streak 18 | 4 8 18 9 Robot Miss Streak 4 | 2 2 3 4 Penetration Max . | . . . . Secondary Targets 3 | . . . 3 Max Gunslinging Chain 1 | . . . 1 Shots Hit Robots 161 | 9 14 23 115 Core Hits 87 | 7 6 24 50 Critical Kills . | . . . . Critical Parts Destroyed . | . . . . Critical Strikes 7 | . . . 7 Burn 7 | . . . 7 Melee Attacks 20 | . . . 20 Impact . | . . . . Slashing . | . . . . Piercing 20 | . . . 20 Sneak Attacks 9 | . . . 9 Combat Hostiles 4 | . . . 4 Follow-up Attacks . | . . . . Damage Inflicted 3489 | 129 187 1729 1444 Guns 1831 | 129 187 151 1364 Cannons . | . . . . Explosions 1604 | . . 1578 26 Melee 54 | . . . 54 Ramming . | . . . . Kinetic 773 | 78 175 151 369 Thermal 1058 | 51 12 . 995 Explosive 1578 | . . 1578 . Electromagnetic 26 | . . . 26 Impact . | . . . . Slashing . | . . . . Piercing 54 | . . . 54 Highest Corruption . | . . . . Average Corruption . | . . . . Corruption Purged . | . . . . Corruption Blocked . | . . . . Overload Shots . | . . . . Overflow Damage . | . . . . Projectiles . | . . . . Explosions . | . . . . Melee . | . . . . Knockbacks . | . . . . Impact . | . . . . Kinetic . | . . . . Secondary . | . . . . Self-Inflicted Damage 30 | . . 30 . Shots 1 | . . 1 . Rammed . | . . . . Targets Rammed . | . . . . Kicked . | . . . . Crushed . | . . . . Highest Temperature 590 | 27 27 . 590 Average Temperature 121 | 11 14 . 142 Received Heat Transfer 963 | . 18 72 873 Effects 8 | . . . 8 Shutdowns 3 | . . . 3 Energy Bleed 1 | . . . 1 Matter Decay 1 | . . . 1 Short Circuit 1 | . . . 1 Damage (major) 1 | . . . 1 Damage (core) 1 | . . . 1 Siege Activations . | . . . . Martial Activations . | . . . . Shielding Activations . | . . . . Robots Disrupted . | . . . . Combat Hostiles . | . . . . Robots Corrupted . | . . . . Combat Hostiles . | . . . . Parts Fried . | . . . . Impact Corruptions . | . . . . Robots Melted 1 | . . . 1 Combat Hostiles 1 | . . . 1 Parts Melted 8 | . . . 8 Heat Transferred 2738 | 148 37 . 2553 Parts Sabotaged . | . . . . Parts Stolen . | . . . . Parts Stripped . | . . . . Power Chain Reactions . | . . . . Alert | -11 -10 -10 -8 ------- Run | Yrd Mat Sub Mat Maximum Alert Level . | . . . . Low Security (%) 100 | 100 100 . 100 Level 1 . | . . . . Level 2 . | . . . . Level 3 . | . . . . Level 4 . | . . . . Level 5 . | . . . . High Security . | . . . . Max Security . | . . . . Peak Influence 122 | 5 25 . 122 Initial . | . . . . Average 9 | . 2 . 11 Influence Increases 645 | 30 40 70 505 Destroy 0b10 Robot/C 460 | . 20 60 380 Destroy 0b10 Robot/NC 55 | 30 10 . 15 Destroy Leader 70 | . 10 10 50 Disable Machine 15 | . . . 15 Lose Combat Pursuer 45 | . . . 45 Influence Decreases 526 | 30 30 80 386 Entered New Map 6 | . . 6 . Time Decay 414 | 30 30 74 280 Lost Part 106 | . . . 106 Squads Dispatched 4 | . 2 . 2 Investigation 1 | . . . 1 Extermination . | . . . . Reinforcement 3 | . 2 . 1 Assault . | . . . . Garrison . | . . . . Intercept . | . . . . Searches Triggered . | . . . . Construction Impeded . | . . . . Haulers Reinforced . | . . . . Active Scanning Responses . | . . . . Cargo Convoy Interrupts . | . . . . Stealth | -11 -10 -10 -8 --------- Run | Yrd Mat Sub Mat Distress Signals 4 | . . . 4 Communications Jammed . | . . . . Distress Signals . | . . . . Times Spotted 63 | . 2 24 37 Peak Tracking Total 6 | . 2 6 6 Tactical Retreats 2 | . . . 2 Traps | -11 -10 -10 -8 ------- Run | Yrd Mat Sub Mat Traps Triggered 2 | . 1 . 1 Indirectly . | . . . . Trap Hack Attempts . | . . . . Triggered . | . . . . Disarmed . | . . . . Reprogrammed . | . . . . Reused . | . . . . Traps Extracted . | . . . . Installed . | . . . . Triggered . | . . . . Machines | -11 -10 -10 -8 ---------- Run | Yrd Mat Sub Mat Machines Disabled 1 | . . . 1 Max in Single Turn 1 | . . . 1 Machines Repaired . | . . . . Machines Dismantled . | . . . . Machines Sabotaged . | . . . . Overloaded Fab Kills . | . . . . Hacking | -11 -10 -10 -8 --------- Run | Yrd Mat Sub Mat Machines Accessed 3 | . 1 . 2 Terminals . | . . . . Fabricators . | . . . . Repair Stations 1 | . . . 1 Recycling Units 2 | . 1 . 1 Scanalyzers . | . . . . Garrison Access . | . . . . Total Hacks 5 | . 2 . 3 Successful 4 | . 1 . 3 Failed 1 | . 1 . . Catastrophic . | . . . . Database Lockouts . | . . . . Manual . | . . . . Terminals . | . . . . Fabricators . | . . . . Repair Stations 2 | . . . 2 Recycling Units 3 | . 2 . 1 Scanalyzers . | . . . . Garrison Access . | . . . . Terminal Hacks . | . . . . Fabricator Hacks . | . . . . Repair Station Hacks 2 | . . . 2 Scan Component 1 | . . . 1 Repair 1 | . . . 1 Recycling Unit Hacks 2 | . 1 . 1 Report Inventory 1 | . 1 . . Retrieve Matter 1 | . . . 1 Scanalyzer . | . . . . Garrison Access Hacks . | . . . . Unauthorized Hacks . | . . . . Terminals . | . . . . Fabricators . | . . . . Repair Stations . | . . . . Recycling Units . | . . . . Scanalyzers . | . . . . Garrison Access . | . . . . Data Cores Recovered . | . . . . Used . | . . . . Hacking Detections . | . . . . Full Trace Events . | . . . . Feedback Events . | . . . . Feedback Blocked . | . . . . Robot Schematics Acquired . | . . . . Robots Built . | . . . . Authchips . | . . . . Time . | . . . . Total Robot Build Rating . | . . . . Part Schematics Acquired . | . . . . Parts Built . | . . . . Authchips . | . . . . Time . | . . . . Total Part Build Rating . | . . . . Parts Repaired 1 | . . . 1 Time 32 | . . . 32 Parts Recycled . | . . . . Recycled Matter . | . . . . Retrieved Matter 70 | . . . 70 Retrieved Components . | . . . . Parts Scanalyzed . | . . . . Part Schematics Acquired . | . . . . Parts Damaged . | . . . . Bothacking | -11 -10 -10 -8 ------------ Run | Yrd Mat Sub Mat Used RIF Installer . | . . . . Robots Hacked . | . . . . Non-combat . | . . . . Combat . | . . . . Robot Hacks Applied . | . . . . Relay Couplers Released . | . . . . Fabnet Peak Effective % . | . . . . Robots Rewired . | . . . . Allies Hacked . | . . . . Hacks Repelled . | . . . . Allies | -11 -10 -10 -8 -------- Run | Yrd Mat Sub Mat Total Allies 1 | . . . 1 Largest Group 1 | . . . 1 Highest-Rated Group 15 | . . . 15 Highest-Rated Ally 15 | . . . 15 Total Orders . | . . . . Ally Attacks . | . . . . Total Damage . | . . . . Kills . | . . . . Allies Corrupted . | . . . . Allies Melted . | . . . . Intel | -11 -10 -10 -8 ------- Run | Yrd Mat Sub Mat Active Infowar (turns) 5827 | 173 350 3617 1687 Terrain 29 | 29 . . . Seismic 5798 | 144 350 3617 1687 Robot Analysis Total . | . . . . Derelict Logs Recovered 3 | . . 3 . Drone Launches . | . . . . Drone Recoveries . | . . . . Exploration | -11 -10 -10 -8 ------------- Run | Yrd Mat Sub Mat Turns Passed 8142 | 278 350 3617 3897 Spaces Moved 3511 | 149 196 2269 897 Core 21 | 7 . . 14 Treads 2787 | 142 196 1812 637 Legs 623 | . . 457 166 Wheels . | . . . . Hover 73 | . . . 73 Flight 7 | . . . 7 Fastest Speed 50 | 50 160 120 120 Average Speed 176 | 158 160 151 245 Slowest Speed 1800 | 200 160 160 1800 Overloaded Moves . | . . . . Propulsion Burnouts . | . . . . Robots Hopped . | . . . . Potential Cave-ins . | . . . . Cave-ins Triggered . | . . . . Exploration Rate (%) 32 | 7 19 74 31 Regions Visited 3 Branch Regions 1 Pre-discovered Areas . | . . . . Known Exits Taken . | . . . . Unknown Exits Taken 3 | 1 1 1 . Scrap Searched . | . . . . Spaces Dug . | . . . . Terrain Destroyed 113 | . . 113 . Melee . | . . . . Projectile . | . . . . AOE 113 | . . 113 . Terrain Rammed . | . . . . Walls Destroyed . | . . . . Machines Disabled . | . . . . Actions | -11 -10 -10 -8 --------- Run | Yrd Mat Sub Mat Total 5216 | 173 212 2357 2474 Wait 1388 | . 4 15 1369 Move 3508 | 148 195 2268 897 Hop . | . . . . Pick Up 36 | 6 2 10 18 Fast Attach 22 | 7 . . 15 Attach 31 | 1 . 4 26 Detach 20 | 1 . . 19 Swap 30 | 1 1 15 13 Drop 18 | . . 10 8 Fire 143 | 9 10 35 89 Melee 20 | . . . 20 Ram . | . . . . Kick . | . . . . Crush . | . . . . Escape Stasis . | . . . . Rewire . | . . . . Trap . | . . . . Miscellaneous . | . . . . Route ------- -11/Scrapyard -10/Materials (discovered 2 exits: [*Min] / [*Sub]) -10/Subcaves (discovered 2 exits: *Mat x2) -8/Materials History --------- Turn | Location | Event 16 | -11/Scrapyard | Discovered new exit (range 16) 279 | -11/Scrapyard | Entered Materials 279 | -10/Materials | Discovered new exit (range 16) 318 | -10/Materials | Build established: Mutant 398 | -10/Materials | Discovered new exit (range 10) 629 | -10/Materials | Entered Subcaves 630 | -10/Subcaves | Approached by a straggling Scientist 699 | -10/Subcaves | Discovered new exit (range 7) 882 | -10/Subcaves | Shifting Twisted Machinery released Sub. Beam Cannon 882 | -10/Subcaves | Shifting Twisted Machinery released Multitool 899 | -10/Subcaves | Ambushed by swarm of Subdwellers 906 | -10/Subcaves | Ambushed by Subdwellers from Twisted Machinery 1144 | -10/Subcaves | A swath of the cavern ceiling suddenly collapsed 2120 | -10/Subcaves | Learned Materials security intel 2531 | -10/Subcaves | Learned Materials emergency access door positions 3661 | -10/Subcaves | Disturbed a concealed Subdweller 3979 | -10/Subcaves | Build established: Scavenger-Mutant 4226 | -10/Subcaves | Discovered new exit (range 11) 4246 | -10/Subcaves | Entered Materials 4246 | -8/Materials | Evolved 4 slots: Power x1, Propulsion x2, Utility x1 4839 | -8/Materials | Core integrity fell below 50% 4876 | -8/Materials | Lost 7 parts (2p2n1u2w) 5123 | -8/Materials | Build established: Mutant 5470 | -8/Materials | Repaired Imp. Treads 6028 | -8/Materials | Core integrity fell below 20% 6090 | -8/Materials | Lost 4 parts (3n1u) 6543 | -8/Materials | Build established: Scavenger-Mutant 8143 | -8/Materials | Destroyed by G-47 Trooper with Particle Gun Last Messages --------------- 08072_ K-01 Serf destroyed. 08074_ K-01 Serf collects debris. 08085_ Acquired Lgt. Assault Rifle. 08088_ Acquired 17 matter. 08091_ Acquired Lgt. Assault Rifle. 08097_ Acquired 19 matter. 08101_ Acquired 12 matter. 08107_ Triggered Alarm Trap. 08107_ An alarm sounds. 08107_ ALERT: Alarm triggered, dispatching investigation squad. 08116_ U-05 Engineer lays Concrete. 08117_ K-01 Serf cleans the Processing Tank. 08117_ R-06 Scavenger collects Lgt. Ion Engine. 08118_ U-05 Engineer lays Concrete. 08120_ K-01 Serf cleans the Processing Tank. 08121_ R-06 Scavenger collects Lgt. Ion Engine. 08128_ R-06 Scavenger collects Lgt. Assault Rifle. 08128_ K-01 Serf cleans the Processing Tank. 08142_ O-16 Technician sends out distress signal. 08142_ O-16 Technician: "IFF HANDSHAKE FAILED. SECURING TERMINAL." Map ----- +----------------------------------------------------+ | ?????????????????????????????????????????????????? | | ?? ??????????????????????????????????????????????? | | ? ??????????????????????????????????????????????? | | ""??????????????????????????????????????????????? | | """ "??????????????????????????????????????????? | | """ ???????????????????????????????????????????? | | ????????????????????????????????????????????? | | ???????????????????????????????????????????? | | ??????????????????????????????????????????? | | ???????????????????????????????????????????? | | ????????????????????????????????????????????? | | ??????????????????????????#???????????????????? | | #?????????????????????????? ##?????????????????? | | #?????????????????????????? ??????????????????? | | ###########??????#######??? ??????????????????? | | ## #????? #??? ???????????????????? | | ## = #???# """ #?? ???????????????????? | | ##! #???# """ ! #?? #???????????????????? | | ## #???# """ #?? #???????????????????? | | ## #???# ! #?? #???????????????????? | | ## ![! #???# """ #? #???????????????????? | | ## ![! #???# """ !#?o #???????????????????? | | ## [[== #???# """ #? #???????????????????? | | ## * = #???# ## #########???????????? | | ######+#############+### k k ????????? | | =[w a @ u ????????? | | u """ ????????? | | k k """ ???????????????? | | #######+######+########## """ ???????????????? | | ???# # ???????## """ ???????????????? | | ???# !!= # ??? ??????? k """????????????????? | | ???# ! = # ?????#?????? ???????????????? | | ???# ! #????????????? g ???????????????? | | ???# #????????????? ######??????????????? | | ???# """ #????????????? #???????????????????? | | ???# """ #????????????? #???????????????????? | | #### """ #????????????? #???????????????????? | | ## #??????????????g #???????????????????? | | ######+####?????????????? #???????????????????? | | #????# #????????????????? #???????????????????? | | #????# #????????????????? ?????????????????????? | | #????# #???????????????????????????????????????? | | #????# #???????????????????????????????????????? | | #????# #???????????????????????????????????????? | | ######+###?????????????????????????????????????? | | # #?????????????????????????????????????? | | # #?????????????????????????????????????? | | # #?????????????????????????????????????? | | + #?????????????????????????????????????? | | ## #?????????????????????????????????????? | +----------------------------------------------------+ Best States ------------- Heat Dissipation 45 Energy Generation 28 Energy Capacity 335 Matter Stores 300 Matter Capacity 300 Sight Range 16 Terrain Scan Range 16 Terrain Scan Density 10 Additional Mass Support 9 Evasion (%) 55 Targeting Accuracy 8 Recoil Reduction 4 Item Schematics ----------------- None Robot Schematics ------------------ None Fabricated ------------ Nothing Repaired ---------- Imp. Treads | 1% | -8/Materials Alien Tech Used ----------------- None Achievements -------------- Backstab Error 47 Factory Defaults It's Just You Challenges ------------ None Game ------ Seed RainbowStasisTriangulator Manual? 0 Play Time 00:45:29 Cumulative 3.2 hours Start 2025.08.06 @ 15:58:43 End 2025.08.06 @ 16:47:27 Sessions 1 Manual Loads 0 Difficulty Rogue Special Mode None Game No. 9 Rogue 9 Adventurer 0 Explorer 0 Win Type - Total 0 Types 0/0/0/0/0/0/0/0/0/0 Lore% 3 Gallery% 7 Achievement% 9 Wizard Run 0 Options --------- Layout 0 ASCII 0 Keyboard 1 Movement Vi Keybinds 1 Fullscreen 2 Font 24/Smallcaps Map View 76x50 Zoom Use 0% Tactical HUD 1 Map Filters NONE Filters NONE Steam 1 RUN: 31999861-b5b8-4e79-aa42-d6344292f011